bitfinex-derivatives/quotes_SOLF0:USTF0_20250505
["timestamp","ask_amount","ask_price","bid_price","bid_amount"]
[1746487566590,6.791,147.28,147.25,6.7919]
[1746487567386,14.05345588,147.29,147.26,6.7916]
[1746487567687,23.66,147.33,147.23,23.66]
[1746487567894,30.4488,147.33,147.24,4.0253]
[1746487568091,23.66,147.33,147.24,4.0253]
[1746487568287,23.66,147.33,147.25,1.9505]
[1746487568689,23.66,147.36,147.25,1.9505]
[1746487568992,6.7887,147.33,147.3,6.7895]
[1746487570089,23.66,147.36,147.29,6.7902]
[1746487570486,23.66,147.36,147.28,23.66]
[1746487570691,6.7888,147.33,147.3,6.7896]
[1746487571595,6.7894,147.31,147.28,6.7905]
[1746487571894,7.26295588,147.32,147.25,25.6105]
[1746487572095,6.7902,147.3,147.26,6.7914]
[1746487574195,6.7903,147.29,147.26,6.7914]
[1746487576387,6.7903,147.29,147.21,1.0]
[1746487576388,23.66,147.28,147.21,1.0]
[1746487576592,7.26295588,147.23,147.21,1.0]
[1746487576992,7.26295588,147.26,147.21,1.0]
[1746487577192,7.26295588,147.23,147.21,1.0]
[1746487577793,6.7935,147.22,147.21,1.0]
[1746487579399,6.794,147.21,147.2,1.0]
[1746487581898,6.7948,147.2,147.18,1.0]
[1746487582101,7.26295588,147.23,147.18,1.0]
[1746487582498,6.7948,147.2,147.18,1.0]
[1746487582699,7.26295588,147.23,147.18,1.0]
[1746487583204,6.7947,147.2,147.18,1.0]
[1746487586300,7.26295588,147.23,147.18,1.0]
[1746487586504,7.26295588,147.2,147.18,1.0]
[1746487587004,6.7949,147.19,147.18,1.0]
[1746487587893,6.7949,147.19,147.15,8.908]
[1746487587894,6.7957,147.18,147.15,6.7965]
[1746487588104,7.26295588,147.17,147.13,6.7976]
[1746487588405,23.88,147.2,147.11,25.9946]
[1746487588606,6.7962,147.17,147.14,6.7969]
[1746487588798,23.88,147.2,147.14,6.7969]
[1746487589105,23.88,147.2,147.11,25.9946]
[1746487589304,6.7954,147.18,147.15,6.7964]
[1746487590005,30.6747,147.2,147.11,25.9946]
[1746487590304,23.88,147.2,147.11,25.9946]
[1746487590501,6.7952,147.19,147.16,6.796]
[1746487590801,23.88,147.2,147.11,25.9946]
[1746487591104,6.7961,147.17,147.14,6.797]
[1746487592810,7.26295588,147.21,147.15,23.88]
[1746487592998,7.26295588,147.21,147.16,2.1027]
[1746487593204,14.05725588,147.21,147.17,6.7955]
[1746487593609,14.05725588,147.21,147.16,2.1027]
[1746487593808,23.88,147.23,147.16,2.1027]
[1746487594012,23.88,147.23,147.17,2.0872]
[1746487594408,30.6734,147.23,147.2,6.7941]
[1746487594603,23.88,147.23,147.17,2.0872]
[1746487595204,23.88,147.23,147.21,6.7939]
[1746487595906,14.05585588,147.24,147.21,6.7939]
[1746487596112,31.14295588,147.28,147.19,23.88]
[1746487596702,6.7918,147.26,147.19,23.88]
[1746487596910,7.26295588,147.25,147.19,23.88]
[1746487597207,31.14295588,147.28,147.19,23.88]
[1746487597409,6.7922,147.25,147.19,23.88]
[1746487597610,31.14295588,147.28,147.19,23.88]
[1746487597815,7.26295588,147.25,147.19,23.88]
[1746487598001,6.7927,147.24,147.21,6.7937]
[1746487599213,6.7927,147.24,147.19,23.88]
[1746487599918,14.05535588,147.25,147.19,23.88]
[1746487600117,7.26295588,147.25,147.19,23.88]
[1746487600920,6.7926,147.24,147.19,23.88]
[1746487602120,6.7926,147.24,147.21,6.7936]
[1746487602619,6.7926,147.24,147.22,6.7935]
[1746487604720,6.7926,147.24,147.21,6.7939]
[1746487607523,6.7931,147.23,147.21,6.7939]
[1746487607824,7.26295588,147.25,147.21,6.7939]
[1746487608229,6.7928,147.24,147.21,6.7939]
[1746487608921,9.33182105,147.27,147.19,23.88]
[1746487610018,6.7936,147.22,147.19,30.6747]
[1746487610220,6.7936,147.22,147.19,23.88]
[1746487611823,6.7936,147.22,147.2,6.7943]
[1746487614729,6.7933,147.23,147.2,6.7943]
[1746487615327,6.7933,147.23,147.21,6.794]
[1746487615930,31.21195861,147.24,147.16,26.0427]
[1746487616424,6.7932,147.23,147.19,6.7945]
[1746487616623,6.7932,147.23,147.17,2.1019]
[1746487616825,6.7932,147.23,147.17,4.1113]
[1746487617028,38.00475861,147.24,147.21,6.794]
[1746487617229,30.7328,147.24,147.21,6.794]
[1746487617423,6.7928,147.24,147.17,4.1113]
[1746487618529,6.7928,147.24,147.21,6.7937]
[1746487619832,6.7923,147.25,147.22,6.7934]
[1746487620833,6.7923,147.25,147.23,6.7931]
[1746487621133,6.7919,147.26,147.23,6.7931]
[1746487622131,30.7314,147.27,147.24,6.7926]
[1746487622331,7.27195861,147.28,147.24,6.7926]
[1746487622536,6.7915,147.27,147.24,6.7926]
[1746487623241,23.94,147.3,147.26,6.7916]
[1746487623242,14.06245861,147.29,147.26,6.7916]
[1746487623539,7.27195861,147.29,147.22,4.0653]
[1746487623936,6.7908,147.28,147.25,6.7919]
[1746487628839,7.27195861,147.29,147.22,4.0653]
[1746487629032,7.27195861,147.26,147.21,2.0273]
[1746487629527,14.06385861,147.26,147.23,6.7928]
[1746487631238,6.7922,147.25,147.23,6.7928]
[1746487633034,14.06385861,147.26,147.23,6.7928]
[1746487633541,7.27195861,147.26,147.21,2.0273]
[1746487634242,6.7914,147.27,147.24,6.7924]
[1746487634541,6.7914,147.27,147.21,2.0273]
[1746487635046,6.7918,147.26,147.21,2.0273]
[1746487636539,6.7918,147.26,147.24,6.7923]
[1746487643148,6.7915,147.27,147.24,6.7923]
[1746487643349,7.27195861,147.29,147.24,6.7923]
[1746487644247,6.7916,147.27,147.24,6.7923]
[1746487644747,7.27195861,147.29,147.25,6.7919]
[1746487645649,7.27195861,147.29,147.24,6.7924]
[1746487646048,7.27195861,147.29,147.21,2.0273]
[1746487646249,7.27195861,147.29,147.22,2.1179]
[1746487646850,6.791,147.28,147.26,6.7916]
[1746487647044,7.27195861,147.29,147.22,2.1179]
[1746487647250,7.27195861,147.29,147.22,4.1108]
[1746487648152,14.06245861,147.29,147.22,4.1108]
[1746487648750,14.06245861,147.29,147.26,6.7915]
[1746487649345,7.27195861,147.29,147.24,6.7924]
[1746487650048,7.27195861,147.29,147.23,24.14]
[1746487650453,6.7911,147.28,147.25,6.7919]
[1746487650954,7.27195861,147.29,147.26,6.7913]
[1746487650955,6.7906,147.29,147.26,6.7913]
[1746487651357,24.14,147.33,147.23,24.14]
[1746487651557,6.79,147.3,147.23,24.14]
[1746487651856,31.41195861,147.33,147.23,24.14]
[1746487652156,6.7898,147.31,147.23,24.14]
[1746487652658,6.7898,147.31,147.28,6.7904]
[1746487653456,6.7898,147.31,147.29,6.7903]
[1746487657657,6.7891,147.32,147.29,6.7903]
[1746487659264,6.7894,147.31,147.29,6.7903]
[1746487665269,31.41195861,147.33,147.23,24.14]
[1746487665769,4.64746815,147.31,147.3,6.7895]
[1746487667366,4.64746815,147.31,147.29,6.7902]
[1746487667554,11.43686815,147.31,147.26,1.9426]
[1746487667758,31.40313734,147.33,147.26,1.9426]
[1746487667958,6.7896,147.31,147.28,6.7905]
[1746487668159,31.40313734,147.33,147.28,6.7905]
[1746487668361,31.40313734,147.33,147.26,1.9426]
[1746487669067,6.79,147.3,147.27,6.791]
[1746487670368,6.79,147.3,147.28,6.7907]
[1746487671068,6.79,147.3,147.27,6.791]
[1746487674170,6.7903,147.29,147.27,6.791]
[1746487676673,6.791,147.28,147.26,6.7914]
[1746487676875,2.0737,147.32,147.26,6.7914]
[1746487677284,6.7904,147.29,147.26,6.7914]
[1746487679989,6.7904,147.29,147.27,6.7912]
[1746487680388,6.7904,147.29,147.23,24.14]
[1746487680591,6.7908,147.28,147.23,24.14]
[1746487680890,2.0737,147.32,147.23,24.14]
[1746487681289,6.7905,147.29,147.26,6.7912]
[1746487681688,6.7905,147.29,147.23,24.14]
[1746487682891,6.7905,147.29,147.26,6.7914]
[1746487683683,6.7901,147.3,147.23,24.14]
[1746487683891,2.0737,147.32,147.23,24.14]
[1746487684293,31.40313734,147.33,147.23,24.14]
[1746487684793,6.7896,147.31,147.28,6.7904]
[1746487685393,6.7896,147.31,147.29,6.7903]
[1746487685790,6.7891,147.32,147.29,6.7903]
[1746487685986,31.40313734,147.33,147.3,6.7898]
[1746487686291,24.14,147.33,147.27,23.94]
[1746487686483,30.9287,147.33,147.27,23.94]
[1746487686794,9.33833734,147.36,147.31,6.7893]
[1746487686994,6.7884,147.34,147.31,6.7893]
[1746487687194,23.94,147.35,147.31,6.7893]
[1746487687392,6.7885,147.33,147.3,6.7896]
[1746487687894,23.94,147.35,147.29,6.7901]
[1746487688394,23.94,147.35,147.27,23.94]
[1746487688596,6.7894,147.31,147.28,6.7904]
[1746487689699,11.43719552,147.31,147.28,6.7904]
[1746487690498,11.43719552,147.31,147.29,6.7903]
[1746487690702,11.43719552,147.31,147.27,23.94]
[1746487691100,6.7899,147.3,147.28,6.7905]
[1746487691396,6.7899,147.3,147.27,23.94]
[1746487691798,6.7899,147.3,147.27,30.7309]
[1746487692899,4.64779552,147.29,147.27,6.7909]
[1746487694194,11.43829552,147.29,147.26,6.7915]
[1746487694403,4.64779552,147.29,147.26,6.7915]
[1746487695097,11.43829552,147.29,147.27,6.7911]
[1746487695797,4.64779552,147.29,147.27,6.7911]
[1746487697197,11.43829552,147.29,147.27,6.7911]
[1746487697592,11.43829552,147.29,147.26,6.7914]
[1746487698501,4.64779552,147.29,147.27,6.7912]
[1746487702005,11.43829552,147.29,147.26,6.7915]
[1746487702703,11.43829552,147.29,147.27,6.7912]
[1746487703092,4.64779552,147.29,147.27,6.7912]
[1746487703298,4.64779552,147.29,147.24,23.94]
[1746487704204,4.64779552,147.29,147.28,6.7908]
[1746487704397,11.43789552,147.3,147.28,6.7908]
[1746487704606,4.64779552,147.3,147.28,6.7908]
[1746487706806,11.43769552,147.3,147.28,6.7908]
[1746487708204,4.64779552,147.3,147.29,6.7903]
[1746487710605,4.64779552,147.3,147.28,6.7906]
[1746487711109,4.64779552,147.3,147.29,6.7903]
[1746487711599,4.64779552,147.3,147.25,4.64779552]
[1746487711804,4.64779552,147.3,147.25,28.44779552]
[1746487712205,4.64779552,147.3,147.28,6.7905]
[1746487712904,11.43769552,147.3,147.25,23.8]
[1746487713407,11.43769552,147.3,147.27,6.7909]
[1746487713712,6.7899,147.3,147.27,6.7909]
[1746487716612,6.7899,147.3,147.25,23.8]
[1746487716613,6.7895,147.31,147.28,6.7907]
[1746487716908,28.58779552,147.32,147.25,28.44779552]
[1746487717204,35.37709552,147.32,147.25,28.44779552]
[1746487717410,28.58779552,147.32,147.25,28.44779552]
[1746487718012,6.7895,147.31,147.25,28.44779552]
[1746487718407,2.0752,147.36,147.27,4.64779552]
[1746487718606,6.7882,147.34,147.31,6.7892]
[1746487719012,6.7882,147.34,147.29,23.8]
[1746487719213,11.43549552,147.35,147.32,6.7889]
[1746487720212,4.64779552,147.33,147.29,23.8]
[1746487720810,11.43649552,147.33,147.29,23.8]
[1746487721010,6.7887,147.33,147.29,23.8]
[1746487721209,11.43649552,147.33,147.29,23.8]
[1746487721513,11.43649552,147.33,147.3,6.7895]
[1746487722310,4.64779552,147.33,147.29,30.5902]
[1746487722514,4.64779552,147.31,147.29,30.5902]
[1746487722814,4.64779552,147.31,147.28,1.9499]
[1746487723111,4.64779552,147.31,147.26,23.8]
[1746487724818,6.7901,147.3,147.27,6.7909]
[1746487725117,4.64779552,147.31,147.26,23.8]
[1746487725314,11.43729552,147.31,147.28,6.7905]
[1746487727020,6.7899,147.3,147.27,6.791]
[1746487730321,11.43739552,147.31,147.28,6.7907]
[1746487732422,6.7899,147.3,147.28,6.7907]
[1746487733022,11.43739552,147.31,147.28,6.7907]
[1746487733925,6.7896,147.31,147.28,6.7907]
[1746487734119,11.43739552,147.31,147.28,6.7907]
[1746487735127,23.8,147.32,147.27,4.64779552]
[1746487735422,4.64779552,147.34,147.27,4.64779552]
[1746487735927,6.7887,147.33,147.27,4.64779552]
[1746487736130,11.43649552,147.33,147.27,4.64779552]
[1746487736325,4.64779552,147.33,147.27,4.64779552]
[1746487737627,11.43629552,147.33,147.3,6.7895]
[1746487738323,6.7885,147.33,147.3,6.7895]
[1746487738516,11.43599552,147.34,147.31,6.7893]
[1746487738926,4.64779552,147.34,147.32,6.7888]
[1746487740331,11.43579552,147.34,147.32,6.7888]
[1746487740935,4.64779552,147.34,147.28,1.9783]
[1746487741132,4.64779552,147.32,147.28,1.9783]
[1746487741434,11.43669552,147.32,147.29,6.79]
[1746487742035,6.7896,147.31,147.28,8.7689]
[1746487742234,6.7896,147.31,147.28,6.7906]
[1746487744032,4.64779552,147.3,147.26,30.5915]
[1746487744239,4.64779552,147.28,147.26,23.8]
[1746487744438,4.64779552,147.28,147.25,134.48012221]
[1746487744737,11.43879552,147.28,147.25,6.792]
[1746487745539,6.7913,147.27,147.24,8.8746]
[1746487745837,6.7913,147.27,147.24,6.7924]
[1746487747139,6.7907,147.29,147.25,6.7919]
[1746487747538,9.3629255,147.31,147.25,6.7919]
[1746487748235,6.7907,147.29,147.25,6.7919]
[1746487749538,9.3629255,147.31,147.25,6.7919]
[1746487749741,9.3629255,147.31,147.24,6.7924]
[1746487749939,9.3629255,147.31,147.23,23.86]
[1746487750141,6.7912,147.27,147.23,23.86]
[1746487750645,6.791,147.28,147.25,6.7921]
[1746487752944,6.791,147.28,147.23,23.86]
[1746487753345,6.791,147.28,147.25,6.7919]
[1746487753639,9.3629255,147.31,147.21,1.9719]
[1746487753840,23.86,147.28,147.21,1.9719]
[1746487754041,6.7919,147.26,147.23,6.7928]
[1746487754244,31.1261255,147.28,147.21,1.9719]
[1746487754445,6.7925,147.25,147.22,6.7933]
[1746487757644,6.7928,147.24,147.21,8.7657]
[1746487758745,6.7923,147.25,147.22,6.7934]
[1746487762145,6.7927,147.24,147.22,6.7934]
[1746487763142,6.7927,147.24,147.21,8.7655]
[1746487763342,6.7927,147.24,147.21,1.9719]
[1746487763748,6.7927,147.24,147.21,8.7657]
[1746487766946,6.7927,147.24,147.21,6.7938]
[1746487767151,7.2661255,147.27,147.17,161.55527413]
[1746487767450,2.0896,147.26,147.17,161.55527413]
[1746487767649,6.7942,147.21,147.18,6.7951]
[1746487767846,11.44826263,147.21,147.18,6.7951]
[1746487768047,4.65406263,147.23,147.17,166.20933676]
[1746487768246,6.7937,147.22,147.17,166.20933676]
[1746487768950,6.7937,147.22,147.19,6.7947]
[1746487769544,6.7937,147.22,147.2,6.7944]
[1746487770157,11.44736263,147.23,147.2,6.7944]
[1746487770751,11.44736263,147.23,147.21,6.7938]
[1746487771452,6.7954,147.18,147.1,1.0]
[1746487771655,4.66059311,147.11,147.1,1.0]
[1746487771856,4.66059311,147.15,147.1,1.0]
[1746487772059,23.94,147.15,147.1,5.66059311]
[1746487772458,4.66059311,147.16,147.1,5.66059311]
[1746487772661,11.45719311,147.16,147.1,5.66059311]
[1746487773056,6.7969,147.15,147.1,5.66059311]
[1746487773762,6.7969,147.15,147.1,1.0]
[1746487773959,6.7969,147.15,147.11,6.7983]
[1746487775064,6.7969,147.15,147.12,6.7981]
[1746487777061,6.7973,147.14,147.12,6.7981]
[1746487779264,6.7969,147.15,147.12,6.7981]
[1746487780266,6.7973,147.14,147.11,6.7984]
[1746487780468,6.7973,147.14,147.1,1.0]
[1746487780969,23.94,147.17,147.1,1.0]
[1746487781166,23.94,147.17,147.11,1.9347]
[1746487781665,6.7963,147.16,147.13,6.7974]
[1746487782062,6.7963,147.16,147.11,1.9347]
[1746487783569,6.7963,147.16,147.13,6.7974]
[1746487784773,23.96,147.21,147.12,23.96]
[1746487784975,31.23819812,147.21,147.13,2.0452]
[1746487785369,6.7955,147.18,147.15,6.7965]
[1746487785672,6.7955,147.18,147.13,2.0452]
[1746487785874,6.7951,147.19,147.13,2.0452]
[1746487786472,6.7951,147.19,147.15,6.7965]
[1746487786672,6.7947,147.2,147.13,2.0452]
[1746487786871,31.23819812,147.21,147.13,2.0452]
[1746487787066,31.23819812,147.21,147.15,6.7966]
[1746487787467,6.7957,147.18,147.15,6.7966]
[1746487787668,31.23819812,147.21,147.15,6.7966]
[1746487788169,6.7957,147.18,147.15,6.7966]
[1746487794078,31.23819812,147.21,147.11,1.9347]
[1746487794279,7.27819812,147.15,147.11,1.9347]
[1746487794678,6.7963,147.16,147.13,6.7976]
[1746487794884,24.22,147.18,147.13,6.7976]
[1746487795185,6.7961,147.17,147.13,6.7976]
[1746487798589,24.22,147.21,147.13,24.22]
[1746487798886,24.22,147.21,147.14,4.198]
[1746487799885,31.49819812,147.22,147.14,4.198]
[1746487800088,6.7944,147.21,147.17,6.7955]
[1746487801088,6.7946,147.2,147.17,6.7955]
[1746487801585,6.7955,147.18,147.15,6.7964]
[1746487802083,7.27819812,147.19,147.14,4.198]
[1746487803291,6.7955,147.18,147.15,6.7965]
[1746487808995,6.7959,147.17,147.15,6.7965]
[1746487809594,6.7955,147.18,147.15,6.7965]
[1746487812496,6.7962,147.17,147.15,6.7967]
[1746487813596,6.7956,147.18,147.15,6.7967]
[1746487813999,7.27819812,147.19,147.15,6.7967]
[1746487814295,6.7955,147.18,147.15,6.7967]
[1746487815099,7.27819812,147.19,147.15,6.7967]
[1746487815798,6.7956,147.18,147.15,6.7967]
[1746487816695,14.07319812,147.19,147.14,4.198]
[1746487817600,7.27819812,147.19,147.14,4.198]
[1746487819504,7.27819812,147.19,147.16,6.796]
[1746487820000,14.07339812,147.19,147.16,6.796]
[1746487820499,7.27819812,147.19,147.17,6.7957]
[1746487821805,14.07309812,147.19,147.17,6.7957]
[1746487822399,14.07309812,147.19,147.14,4.198]
[1746487823807,14.07309812,147.19,147.17,6.7958]
[1746487825009,14.07309812,147.19,147.16,6.7961]
[1746487825209,14.07309812,147.19,147.14,4.198]
[1746487825907,6.7956,147.18,147.14,4.198]
[1746487826107,7.27819812,147.19,147.14,4.198]
[1746487827305,7.27819812,147.19,147.17,6.7955]
[1746487827708,4.65652649,147.18,147.17,6.7955]
[1746487827910,4.65652649,147.18,147.16,6.7961]
[1746487828208,6.7961,147.17,147.13,24.22]
[1746487828411,4.65652649,147.15,147.14,6.797]
[1746487830711,6.7964,147.16,147.14,6.797]
[1746487831011,11.45242649,147.17,147.14,6.797]
[1746487831210,4.65652649,147.17,147.13,31.0175]
[1746487831404,4.65652649,147.17,147.13,24.22]
[1746487831713,6.7961,147.17,147.14,6.7971]
[1746487835819,6.7957,147.18,147.15,6.7965]
[1746487841726,6.7951,147.19,147.16,6.7963]
[1746487841930,31.81671364,147.2,147.13,24.22]
[1746487842227,6.7956,147.18,147.15,6.7965]
[1746487847627,6.7956,147.18,147.13,24.22]
[1746487848733,6.7956,147.18,147.15,6.7964]
[1746487851732,11.45179597,147.18,147.15,6.7964]
[1746487852232,11.45179597,147.18,147.16,6.7963]
[1746487854336,11.45179597,147.18,147.15,6.7965]
[1746487857438,11.45179597,147.18,147.16,6.7962]
[1746487858339,11.45179597,147.18,147.15,6.7965]
[1746487858733,11.45179597,147.18,147.13,26.3632]
[1746487859032,11.45179597,147.18,147.15,6.7965]
[1746487859340,11.45179597,147.18,147.15,6.7964]
[1746487860640,11.45179597,147.18,147.16,6.7963]
[1746487860841,4.65619597,147.18,147.13,26.3632]
[1746487861035,4.65619597,147.18,147.13,28.4114]
[1746487861635,4.65619597,147.18,147.17,6.7958]
[1746487861935,4.65619597,147.18,147.13,28.4114]
[1746487863241,24.54,147.21,147.14,4.65619597]
[1746487863441,29.19619597,147.21,147.14,4.65619597]
[1746487863642,35.99059597,147.21,147.14,4.65619597]
[1746487863842,11.45059597,147.21,147.14,4.65619597]
[1746487864340,4.65619597,147.21,147.14,4.65619597]
[1746487865043,4.65619597,147.21,147.19,6.7949]
[1746487866644,6.7933,147.23,147.16,4.65619597]
[1746487866942,4.65619597,147.22,147.17,24.26]
[1746487867340,11.44979597,147.22,147.2,6.7944]
[1746487867744,4.65619597,147.22,147.21,6.794]
[1746487868041,11.44939597,147.23,147.21,6.794]
[1746487868434,4.65619597,147.23,147.17,28.91619597]
[1746487869042,4.65619597,147.23,147.21,6.7937]
[1746487869242,11.44939597,147.23,147.21,6.7937]
[1746487869436,11.44939597,147.23,147.18,2.0009]
[1746487869831,11.44939597,147.23,147.2,6.794]
[1746487870140,11.44939597,147.23,147.18,2.0009]
[1746487871337,6.7928,147.24,147.21,6.7939]
[1746487871540,11.44899597,147.24,147.21,6.7939]
[1746487872743,11.44899597,147.24,147.22,6.7935]
[1746487872942,6.7921,147.26,147.19,4.65619597]
[1746487873148,28.91619597,147.27,147.21,4.65619597]
[1746487873342,4.65619597,147.27,147.26,6.7917]
[1746487873544,11.44679597,147.29,147.26,6.7917]
[1746487874039,11.44679597,147.29,147.25,6.7919]
[1746487875447,6.7909,147.28,147.25,6.7919]
[1746487875644,4.65619597,147.27,147.22,26.2201]
[1746487876344,11.44769597,147.27,147.24,6.7926]
[1746487877749,6.7915,147.27,147.24,6.7926]
[1746487880144,31.52720401,147.3,147.22,26.2201]
[1746487880445,31.52720401,147.3,147.22,24.26]
[1746487880848,6.7922,147.25,147.22,31.0532]
[1746487882245,31.52720401,147.3,147.22,24.26]
[1746487883348,6.7915,147.27,147.24,6.7924]
[1746487886549,31.52720401,147.3,147.24,6.7924]
[1746487886751,31.52720401,147.3,147.22,24.26]
[1746487886952,31.52720401,147.3,147.23,2.1218]
[1746487887250,6.7905,147.29,147.23,2.1218]
[1746487888246,6.7905,147.29,147.26,6.7914]
[1746487896758,31.05,147.3,147.27,6.7908]
[1746487897758,35.699049,147.3,147.27,6.7908]
[1746487900760,28.909049,147.3,147.28,6.7905]
[1746487901858,35.698949,147.3,147.28,6.7905]
[1746487903655,6.7905,147.29,147.27,6.791]
[1746487903863,4.649049,147.28,147.27,6.791]
[1746487905676,4.649049,147.28,147.22,26.2386]
[1746487905965,4.649049,147.25,147.22,24.26]
[1746487906264,6.7926,147.24,147.19,24.16]
[1746487906761,6.7926,147.24,147.21,6.7936]
[1746487918969,6.7925,147.25,147.19,24.16]
[1746487919171,24.16,147.26,147.19,24.16]
[1746487919473,30.9521,147.26,147.19,24.16]
[1746487920474,6.7923,147.25,147.22,6.7931]
[1746487920973,24.16,147.26,147.19,24.16]
[1746487921171,2.0429,147.25,147.17,1.9683]
[1746487921679,6.7941,147.21,147.18,6.7951]
[1746487921877,6.7941,147.21,147.17,1.9683]
[1746487922278,6.7941,147.21,147.18,6.7951]
[1746487922873,23.96,147.21,147.16,6.7961]
[1746487923279,6.7953,147.19,147.16,6.7961]
[1746487923973,6.7954,147.18,147.15,6.7965]
[1746487924181,31.22998632,147.21,147.13,23.96]
[1746487924380,1.997,147.2,147.13,23.96]
[1746487924579,6.7961,147.17,147.14,6.797]
[1746487927181,6.7961,147.17,147.15,6.7966]
[1746487927973,6.7956,147.18,147.15,6.7966]
[1746487928483,6.796,147.17,147.15,6.7966]
[1746487929683,6.796,147.17,147.14,6.797]
[1746487930582,6.7956,147.18,147.15,6.7967]
[1746487931480,6.7959,147.17,147.15,6.7967]
[1746487932183,6.7959,147.17,147.14,6.7971]
[1746487932378,6.7964,147.16,147.14,6.7971]
[1746487932785,6.7964,147.16,147.13,23.96]
[1746487933485,6.796,147.17,147.14,6.7972]
[1746487938193,7.26998632,147.21,147.11,6.7985]
[1746487938486,7.26998632,147.18,147.1,1.0]
[1746487938683,23.96,147.17,147.1,1.0]
[1746487938886,6.7971,147.15,147.1,1.0]
[1746487939385,6.7971,147.15,147.13,6.7977]
[1746487939689,23.96,147.17,147.1,1.0]
[1746487939883,23.96,147.17,147.13,6.7973]
[1746487940181,30.7562,147.17,147.13,6.7973]
[1746487941081,23.96,147.17,147.14,6.7972]
[1746487941285,6.7956,147.18,147.14,6.7972]
[1746487941588,6.7956,147.18,147.12,23.96]
[1746487941889,6.7959,147.17,147.14,6.7971]
[1746487942792,6.7956,147.18,147.15,6.7967]
[1746487943188,6.7958,147.17,147.15,6.7967]
[1746487943900,6.7956,147.18,147.15,6.7967]
[1746487945003,6.7958,147.17,147.15,6.7967]
[1746487952801,4.65689545,147.18,147.16,6.7961]
[1746487953003,23.96,147.2,147.16,4.65689545]
[1746487953403,23.96,147.2,147.18,6.7951]
[1746487953800,6.7942,147.21,147.18,6.7951]
[1746487955204,11.45049545,147.22,147.16,4.65689545]
[1746487955698,6.7936,147.22,147.16,24.04]
[1746487956308,6.7936,147.22,147.19,6.7946]
[1746487956499,6.794,147.21,147.19,6.7946]
[1746487973620,6.7937,147.22,147.2,6.7944]
[1746487973820,24.04,147.23,147.16,24.04]
[1746487974220,6.794,147.21,147.19,6.7946]
[1746487980624,6.794,147.21,147.18,6.7951]
[1746487985025,4.65405617,147.2,147.11,141.3295117]
[1746487985324,4.65405617,147.15,147.11,141.3295117]
[1746487985925,11.45085617,147.15,147.12,6.7979]
[1746487994229,6.7973,147.14,147.12,6.7979]
[1746487997232,11.45105617,147.15,147.12,6.7979]
[1746488003038,6.7973,147.14,147.12,6.7979]
[1746488007237,6.7973,147.14,147.11,141.3295117]
[1746488008439,6.7973,147.14,147.11,148.1280117]
[1746488008626,6.7977,147.13,147.11,148.1280117]
[1746488009037,6.7977,147.13,147.11,141.3295117]
[1746488009238,11.45175617,147.13,147.11,141.3295117]
[1746488011536,11.45175617,147.13,147.11,148.1280117]
[1746488011837,11.45175617,147.13,147.11,141.3295117]
[1746488012738,11.45175617,147.13,147.11,148.1278117]
[1746488014337,11.45175617,147.13,147.11,141.3295117]
[1746488015740,11.45175617,147.13,147.11,148.1279117]
[1746488016141,11.45175617,147.13,147.11,141.3295117]
[1746488020544,6.7981,147.12,147.11,141.3295117]
[1746488021142,6.7981,147.12,147.11,0.1]
[1746488032250,4.65405617,147.13,146.99,55.83068221]
[1746488032551,4.65405617,147.09,147.02,4.65405617]
[1746488032750,4.65405617,147.11,147.08,6.8]
[1746488034254,6.7993,147.1,147.07,6.8002]
[1746488035255,4.65405617,147.11,147.07,6.8002]
[1746488035448,4.65405617,147.11,147.06,6.8007]